{"text_format":"1","workbook":"xlsx","n_sheets":3,"sheets":["Relació de despeses","Relació d'ingressos ","despeses i ingressos"],"not_rendered":{"charts":0,"images":2,"macros":1,"external_links":0,"defined_names":7,"comments":3,"pivot_tables":0},"unopened":[],"bounds":{"document_bytes":16777216,"sheet_cells":100000,"rows_first":2000,"rows_last":500,"rows_between":2000,"halvings":0,"cell_chars":16384,"cell_head_chars":4096},"cells_cut":0,"cells_raw":0,"read":"whole","date_system":"1900"}

{"sheet":"Relació de despeses","index":0,"n_rows":170,"n_cols":12,"rows_kept":170,"cut":false,"hidden":false,"merged":[[154,0,154,10],[46,0,46,12],[34,0,34,12],[40,0,40,12],[65,11,65,12],[20,11,20,12],[21,0,21,6],[21,11,21,12],[22,0,22,12],[23,11,23,12],[24,11,24,12],[25,11,25,12],[31,11,31,12],[33,0,33,6],[39,0,39,6],[28,0,28,12],[47,11,47,12],[57,11,57,12],[56,11,56,12],[55,11,55,12],[54,11,54,12],[53,11,53,12],[51,11,51,12],[50,11,50,12],[150,0,150,2],[150,3,150,6],[150,11,150,12],[151,0,151,5],[151,11,151,12],[140,11,140,12],[141,11,141,12],[142,11,142,12],[143,0,143,6],[143,11,143,12],[144,0,144,12],[145,11,145,12],[146,11,146,12],[147,11,147,12],[134,11,134,12],[135,11,135,12],[136,11,136,12],[137,0,137,6],[137,11,137,12],[138,0,138,12],[139,11,139,12],[148,11,148,12],[149,0,149,6],[149,11,149,12],[126,0,126,12],[127,11,127,12],[128,11,128,12],[129,11,129,12],[130,11,130,12],[131,0,131,6],[131,11,131,12],[132,0,132,12],[133,11,133,12],[119,0,119,6],[119,11,119,12],[120,0,120,12],[121,11,121,12],[122,11,122,12],[123,11,123,12],[124,11,124,12],[125,0,125,6],[125,11,125,12],[111,11,111,12],[112,11,112,12],[113,0,113,6],[113,11,113,12],[114,0,114,12],[115,11,115,12],[116,11,116,12],[117,11,117,12],[118,11,118,12],[104,11,104,12],[105,11,105,12],[106,11,106,12],[102,0,102,12],[107,0,107,6],[107,11,107,12],[108,0,108,12],[109,11,109,12],[110,11,110,12],[97,11,97,12],[98,11,98,12],[96,0,96,12],[94,11,94,12],[99,11,99,12],[100,11,100,12],[101,0,101,6],[101,11,101,12],[103,11,103,12],[88,0,88,2],[88,3,88,6],[88,11,88,12],[89,0,89,10],[90,0,90,12],[95,0,95,6],[95,11,95,12],[77,11,77,12],[79,11,79,12],[80,11,80,12],[82,0,82,12],[83,11,83,12],[85,11,85,12],[86,11,86,12],[81,0,81,6],[81,11,81,12],[87,0,87,6],[87,11,87,12],[7,11,7,12],[8,11,8,12],[10,0,10,12],[14,11,14,12],[64,0,64,12],[69,0,69,6],[63,0,63,6],[57,0,57,6],[52,0,52,12],[30,11,30,12],[29,11,29,12],[7,3,7,4],[58,0,58,12],[51,0,51,6],[33,11,33,12],[32,11,32,12],[67,11,67,12],[66,11,66,12],[63,11,63,12],[62,11,62,12],[59,11,59,12],[69,11,69,12],[68,11,68,12],[60,11,60,12],[75,11,75,12],[61,11,61,12],[76,0,76,12],[70,0,70,12],[75,0,75,6],[71,11,71,12],[74,11,74,12],[49,11,49,12],[48,11,48,12],[73,11,73,12],[3,9,3,10],[4,9,4,10],[9,0,9,10],[45,0,45,6],[35,11,35,12],[15,11,15,12],[41,11,41,12],[39,11,39,12],[38,11,38,12],[37,11,37,12],[36,11,36,12],[12,11,12,12],[13,11,13,12],[16,0,16,12],[3,0,3,1],[7,1,8,1],[7,0,8,0],[6,0,6,4],[17,11,17,12],[18,11,18,12],[19,11,19,12],[26,11,26,12],[27,0,27,6],[27,11,27,12],[155,0,156,9],[164,0,164,10],[166,0,166,10],[167,0,167,10],[168,0,168,10],[169,0,169,10],[0,0,0,12],[4,0,4,1],[15,0,15,6],[2,2,2,3],[3,2,3,3],[4,2,4,3],[11,11,11,12],[2,0,2,1],[45,11,45,12],[2,4,2,6],[3,4,3,6],[4,4,4,6],[44,11,44,12],[43,11,43,12],[42,11,42,12],[7,2,8,2],[2,9,2,10]]}
["Relació classificada de totes les despeses realitzades per a l'execució de l'activitat  subvencionada"]
[]
["Persona física/jurídica beneficiària:         ",null,null,null,"Import total del projecte:",null,null,null,null,null,null,"euros"]
["Codi de subvenció:",null,null,null,"Import de la subvenció atorgada:",null,null,null,null,null,null,"euros"]
["Nom del projecte subvencionat:",null,null,null,"Període d'execució del projecte subvencionat:",null,null,null,null,null,null,"a"]
[]
["Despeses del projecte/activitat/servei subvencionat (*)"]
["Núm. d'ordre (0)","Número de document: justificants despesa personal (1), factura o rebut/tiquet(2)","Concepte de la factura / \ndocument probatori equivalent","Emissor/a de la factura",null,"Data d'emissió","Import total de la factura","Percentatge d'iva deduït o el de després d'aplicar la Prorrata","Import després de deduïr l'IVA corresponent","Import imputable (dedicat) al projecte (3)","Import imputable a la subvenció municipal (4)","Observacions"]
[null,null,null,"NIF","Nom","dd/mm/aaaa","euros","%","euros","euros","euros"]
["DESPESES DIRECTES (Aquelles que s'identifiquen directament amb el projecte)"]
["D.1  Nòmines i seguretat social IRPF (règim general o règim d’autònoms) del personal propi  vinculat al projecte "]
[]
[]
[]
[]
[null,null,null,null,null,null,null,null,"Subtotal D1",{"$f":"SUM(J12:J15)","v":0},{"$f":"SUM(K12:K15)","v":0}]
["D.2 Rendiments anuals nets de l’empresari/a individual (veure 13.2 bases)"]
[]
[]
[]
[]
[null,null,null,null,null,null,null,null,"Subtotal D2",{"$f":"SUM(J18:J21)","v":0},{"$f":"SUM(K18:K21)","v":0}]
["D.3  Treballs realitzats per professionals i empreses externes directament vinculades al projecte"]
[]
[]
[]
[]
[null,null,null,null,null,null,null,null,"Subtotal D3",{"$f":"SUM(J24:J27)","v":0},{"$f":"SUM(K24:K27)","v":0}]
["D.4 Lloguer de bens mobles/immobles directament vinculats al projecte"]
[]
[]
[]
[]
[null,null,null,null,null,null,null,null,"Subtotal D4",{"$f":"SUM(J30:J33)","v":0},{"$f":"SUM(K30:K33)","v":0}]
["D.5 Adquisició de materials i béns consumibles íntegrament imputables al projecte"]
[]
[]
[]
[]
[null,null,null,null,null,null,null,null,"Subtotal D5",{"$f":"SUM(J36:J39)","v":0},{"$f":"SUM(K36:K39)","v":0}]
["D.6 Transport – missatgeria imputables al projecte"]
[]
[]
[]
[]
[null,null,null,null,null,null,null,null,"Subtotal D6",{"$f":"SUM(J42:J45)","v":0},{"$f":"SUM(K42:K45)","v":0}]
["D.7 Publicitat i propaganda de les activitats directament vinculades al projecte"]
[]
[]
[]
[]
[null,null,null,null,null,null,null,null,"Subtotal D7",{"$f":"SUM(J48:J51)","v":0},{"$f":"SUM(K48:K51)","v":0}]
["D.8  Allotjament i dietes, del personal contractat i voluntaris"]
[]
[]
[]
[]
[null,null,null,null,null,null,null,null,"Subtotal D8",{"$f":"SUM(J54:J57)","v":0},{"$f":"SUM(K54:K57)","v":0}]
["D.9  Ajuts al transport per als/les participants dels projectes en cas que sigui necessari de manera justificada"]
[]
[]
[]
[]
[null,null,null,null,null,null,null,null,"Subtotal D9",{"$f":"SUM(J60:J63)","v":0},{"$f":"SUM(K60:K63)","v":0}]
["D.10  Viatges i desplaçaments imputables a les activitats del projecte"]
[]
[]
[]
[]
[null,null,null,null,null,null,null,null,"Subtotal D10",{"$f":"SUM(J66:J69)","v":0},{"$f":"SUM(K66:K69)","v":0}]
["D.11 Tributs, quan siguin abonats directament per la persona jurídica o física beneficiària"]
[]
[]
[]
[]
[null,null,null,null,null,null,null,null,"Subtotal D11",{"$f":"SUM(J72:J75)","v":0},{"$f":"SUM(K72:K75)","v":0}]
["D.12  Despeses de l’informe d’auditoria, quan sigui obligatòria la seva presentació per import de la subvenció"]
[]
[]
[]
[]
[null,null,null,null,null,null,null,null,"Subtotal D12",{"$f":"SUM(J78:J81)","v":0},{"$f":"SUM(K78:K81)","v":0}]
["D.13  Altres despeses que de manera justificada i per la tipologia del projecte puguin imputar-se directament al projecte"]
[]
[]
[]
[]
[null,null,null,null,null,null,null,null,"Subtotal D13",{"$f":"SUM(J78:J81)","v":0},{"$f":"SUM(K84:K87)","v":0}]
["TOTAL DESPESES DIRECTES ",null,null,null,null,null,null,null,"TOTAL DESPESES DIRECTES",{"$f":"+J16+J34+J40+J46+J52+J58+J64+J70+J76+J88+J82+J28+J22","v":0},{"$f":"+K16+K34+K40+K46+K52+K58+K64+K70+K76+K88+K82+K28+K22","v":0}]
["DESPESES INDIRECTES (no es poden assignar directament al projecte sense fer servir algun % d'assignació)"]
["I.1 Personal de suport al projecte (Nòmines i seguretat social)"]
[]
[]
[]
[]
[null,null,null,null,null,null,null,null,"Subtotal I1",{"$f":"SUM(J92:J95)","v":0},{"$f":"SUM(K92:K95)","v":0}]
["I.2  Assegurances"]
[]
[]
[]
[]
[null,null,null,null,null,null,null,null,"Subtotal I2",{"$f":"SUM(J98:J101)","v":0},{"$f":"SUM(K98:K101)","v":0}]
["I.3  Amortització"]
[]
[]
[]
[]
[null,null,null,null,null,null,null,null,"Subtotal I3",{"$f":"SUM(J104:J107)","v":0},{"$f":"SUM(K104:K107)","v":0}]
["I.4  Lloguer de béns immobles"]
[]
[]
[]
[]
[null,null,null,null,null,null,null,null,"Subtotal I4",{"$f":"SUM(J110:J113)","v":0},{"$f":"SUM(K110:K113)","v":0}]
["I.5  Adquisició de materials i béns consumibles parcialment imputables al projecte"]
[]
[]
[]
[]
[null,null,null,null,null,null,null,null,"Subtotal I5",{"$f":"SUM(J116:J119)","v":0},{"$f":"SUM(K116:K119)","v":0}]
["I.6  Manteniment d’edificis i/o instal·lacions"]
[]
[]
[]
[]
[null,null,null,null,null,null,null,null,"Subtotal I6",{"$f":"SUM(J122:J125)","v":0},{"$f":"SUM(K122:K125)","v":0}]
["I.7  Comunicacions (telèfon, correus, connexió a internet)"]
[]
[]
[]
[]
[null,null,null,null,null,null,null,null,"Subtotal I7",{"$f":"SUM(J128:J131)","v":0},{"$f":"SUM(K128:K131)","v":0}]
["I.8  Despeses financeres"]
[]
[]
[]
[]
[null,null,null,null,null,null,null,null,"Subtotal I8",{"$f":"SUM(J134:J137)","v":0},{"$f":"SUM(K134:K137)","v":0}]
["I.9  Subministraments "]
[]
[]
[]
[]
[null,null,null,null,null,null,null,null,"Subtotal I9",{"$f":"SUM(J140:J143)","v":0},{"$f":"SUM(K140:K143)","v":0}]
["I.10  Treball realitzat per altres empreses, parcialment imputables al projecte (neteja, seguretat...)"]
[]
[]
[]
[]
[null,null,null,null,null,null,null,null,"Subtotal I10",{"$f":"SUM(J146:J149)","v":0},{"$f":"SUM(K146:K149)","v":0}]
["TOTAL DESPESES INDIRECTES ",null,null,null,null,null,null,null,"TOTAL DESPESES INDIRECTES",{"$f":"+J96+J102+J108+J114+J120+J126+J132+J138+J144+J150","v":0},{"$f":"+K96+K102+K108+K114+K120+K126+K132+K138+K144+K150","v":0}]
["TOTAL DESPESES",null,null,null,null,null,null,null,"TOTAL",{"$f":"+J151+J89","v":0},{"$f":"+K151+K89","v":0}]
[]
[]
["El Sr./Sra. (indicar el nom i cognoms de la persona representant que signa la justificació)  amb DNI/NIE (indicar el núm. DNI) en qualitat de persona física beneficiària o representant legal de la persona jurídica beneficiària (indicar nom i cognoms) amb NIF (indicar núm DNI)."]
["CERTIFICA que les despeses imputades al projecte/activitat/servei subvencionat han estat efectivament efectuades; que custodiarà la documentació suport que ho acredita; que  aquesta documentació es troba a disposició de l'Ajuntament de Barcelona o dels altres ens municipals en els arxius d'aquesta Entitat, durant un període mínim de 4 anys a comptar des de la data de presentació de la present justificació."]
[]
[]
[]
[]
[null,"Població i data: ",null,null,"Signatura i segell"]
[]
[]
["Notes:"]
["(*) S'han de relacionar totes les despeses del projecte/activitat/servei subvencionat. En el cas que el nombre de files de cada concepte sigui insuficient podeu inserir línies dins del mateix concepte seleccionant una cel·la verda i fent clic sobre el botó d'inserir línia."]
["(0) El número d'ordre ha de ser correlatiu començant per D.1.1, D1.2, D.1.3, D2.4, etc."]
["(1) Respecte a les despeses de recursos humans, pot ser subvencionable el cost total salarial mensual, que correspon a la suma de la retribució bruta que apareix a la nòmina del treballador/a més la quota de l'empresa a la Seg. Social. Les despeses de personal es justifiquen amb la nòmina del treballador/a acompanyada dels corresponents TC1 i TC2 de la TGSS i el model 111 de l'IRPF."]
["(2) En el cas que el document justificatiu de la resta de despeses, no sigui una factura, sinó un altre document probatori equivalent, com un rebut o justificant (com per dietes o transport públic), indiqueu-lo en la columna \"observacions\""]
["(3) En el cas que un justificant inclogui conceptes que no tenen a veure amb el projecte/activitat/servei per al qual s'ha atorgat la subvenció, aquí només s'ha d'indicar la part que realment s'ha dedicat al projecte."]
["(4) En aquesta columna s'ha d'indicar l'import total o parcial de la factura  que s'imputa a la subvenció rebuda de l'Ajuntament de Barcelona. El total imputat, en aquesta columna, ha de ser igual  a l'import de la subvenció rebuda."]

{"sheet":"Relació d'ingressos ","index":1,"n_rows":78,"n_cols":10,"rows_kept":78,"cut":false,"hidden":false,"merged":[[19,6,19,9],[18,6,18,9],[17,6,17,9],[16,6,16,9],[34,6,34,9],[26,0,26,3],[50,6,50,9],[49,6,49,9],[20,0,20,3],[45,0,45,9],[47,6,47,9],[46,6,46,9],[26,6,26,9],[25,6,25,9],[24,6,24,9],[23,6,23,9],[22,6,22,9],[36,6,36,9],[35,6,35,9],[48,6,48,9],[44,6,44,9],[14,0,14,3],[44,0,44,3],[27,0,27,9],[33,0,33,9],[39,0,39,9],[38,0,38,3],[32,0,32,3],[14,6,14,9],[20,6,20,9],[29,6,29,9],[28,6,28,9],[38,6,38,9],[37,6,37,9],[30,6,30,9],[32,6,32,9],[31,6,31,9],[0,0,0,9],[9,0,9,9],[15,0,15,9],[21,0,21,9],[7,6,8,9],[10,6,10,9],[11,6,11,9],[7,0,8,0],[12,6,12,9],[13,6,13,9],[3,2,3,3],[2,2,2,3],[6,0,6,3],[4,2,4,3],[7,2,7,3],[7,1,8,1],[41,6,41,9],[40,6,40,9],[51,0,51,9],[57,0,57,9],[56,6,56,9],[43,6,43,9],[42,6,42,9],[58,6,58,9],[56,0,56,3],[50,0,50,3],[53,6,53,9],[52,6,52,9],[66,0,66,3],[65,0,65,3],[68,0,68,9],[69,0,69,9],[65,6,65,9],[64,6,64,9],[59,6,59,9],[66,6,66,9],[60,6,60,9],[61,6,61,9],[62,6,62,9],[63,6,63,9]]}
["Detall de tots els ingressos obtinguts i aportacions del propi beneficiari per a l'execució de l'activitat subvencionada"]
[]
[null,"Nom de la persona física/jurídica beneficiària:        ",{"$f":"IF('Relació de despeses'!C3:D3<>\"\",'Relació de despeses'!C3:D3,\"\")","v":""},null,"Import total del projecte :",null,null,{"$f":"IF(+'Relació de despeses'!J3=\"\",\"\",+'Relació de despeses'!J3)","v":""},"euros"]
[null,"Codi de subvenció",{"$f":"IF('Relació de despeses'!C4:D4<>\"\",'Relació de despeses'!C4:D4,\"\")","v":""},null,"Import de la subvenció atorgada:",null,null,{"$f":"IF(+'Relació de despeses'!J4=\"\",\"\",+'Relació de despeses'!J4)","v":""},"euros"]
[null,"Nom del projecte subvencionat",{"$f":"IF('Relació de despeses'!C5:D5<>\"\",'Relació de despeses'!C5:D5,\"\")","v":""},null,"Període d'execució del projecte subvencionat:",null,null,{"$f":"IF(+'Relació de despeses'!J5=\"\",\"\",+'Relació de despeses'!J5)","v":""},"a",{"$f":"IF(+'Relació de despeses'!M5=\"\",\"\",+'Relació de despeses'!M5)","v":""}]
[]
["Ingressos del projecte/activitat/servei subvencionat"]
["Núm. d'ordre (0)","Concepte de l'ingrés","Emissor/a de l'ingrés",null,"Data de cobrament\n(dd/mm/aaaa)","Import","Observacions"]
[null,null,"NIF","Nom","(1)","euros"]
["A. Subvenció municipal "]
[]
[]
[]
[]
[null,null,null,null,"Subtotal A",{"$f":"SUM(F11:F14)","v":0}]
["B. Subvencions d'altres administracions"]
[]
[]
[]
[]
[null,null,null,null,"Subtotal B",{"$f":"SUM(F17:F20)","v":0}]
["C. Subvencions d'ens privats"]
[]
[]
[]
[]
[null,null,null,null,"Subtotal C",{"$f":"SUM(F23:F26)","v":0}]
["D. Recursos propis de l'entitat aplicats al projecte"]
[]
[]
[]
[]
[null,null,null,null,"Subtotal D",{"$f":"SUM(F29:F32)","v":0}]
["E. Taquillatge"]
[]
[]
[]
[]
[null,null,null,null,"Subtotal E",{"$f":"SUM(F35:F38)","v":0}]
["F. Quotes d'inscripció"]
[]
[]
[]
[]
[null,null,null,null,"Subtotal F",{"$f":"SUM(F41:F44)","v":0}]
["G. Venda de Productes"]
[]
[]
[]
[]
[null,null,null,null,"Subtotal G",{"$f":"SUM(F47:F50)","v":0}]
["H. Publicitat i/o Esponsorització"]
[]
[]
[]
[]
[null,null,null,null,"Subtotal H",{"$f":"SUM(F53:F56)","v":0}]
["I. Altres ingressos"]
[]
[]
[]
[]
[]
[]
[]
[null,null,null,null,"Subtotal I",{"$f":"SUM(F59:F65)","v":0}]
["Total INGRESSOS",null,null,null,"TOTAL",{"$f":"+F15+F21+F27+F33+F39+F45+F51+F57+F66","v":0}]
[]
[{"$f":"'Relació de despeses'!A155:K155","v":"El Sr./Sra. (indicar el nom i cognoms de la persona representant que signa la justificació)  amb DNI/NIE (indicar el núm. DNI) en qualitat de persona física beneficiària o representant legal de la persona jurídica beneficiària (indicar nom i cognoms) amb NIF (indicar núm DNI)."}]
["CERTIFICA que els ingressos imputats al projecte/activitat/servei subvencionat han estat efectivament ingressats; que custodiarà la documentació suport que ho acredita; que  aquesta documentació es troba a disposició de l'Ajuntament de Barcelona o dels altres ens municipals en els arxius d'aquesta Entitat, durant un període mínim de 4 anys a comptar des de la data de presentació de la present justificació."]
[]
[]
[]
[null,"Població i data: ",null,null,"Signatura i segell"]
[]
[null,"Nota:"]
[null,"(0) El número d'ordre ha de ser correlatiu començant pel número 1"]
[null,"(1) En cas que l'ingrés estigui pendent cobrament, indicar \"P. Cobrament\" "]

{"sheet":"despeses i ingressos","index":2,"n_rows":124,"n_cols":11,"rows_kept":124,"cut":false,"hidden":false,"merged":[[56,0,57,10],[29,6,29,7],[29,8,29,9],[37,7,39,10],[10,8,11,8],[10,9,11,9],[26,0,27,1],[26,2,27,2],[26,3,27,3],[28,6,28,7],[42,0,42,9],[47,0,47,10],[48,0,48,10],[49,0,49,10],[50,0,50,10],[51,0,51,10],[52,0,52,10],[53,0,53,10],[6,0,6,1],[6,2,6,3],[4,0,4,1],[4,2,4,3],[4,5,4,6],[5,0,5,1],[5,2,5,3],[5,5,5,6],[9,0,9,1],[9,6,9,7],[10,0,11,1],[10,2,11,2],[10,3,11,3],[10,6,11,7]]}
[]
[]
["Estat de les despeses realitzades i dels ingressos obtinguts per a l'execució de l'activitat subvencionada (*)"]
[]
["Nom de la persona física/jurídica beneficiària:         ",null,{"$f":"IF('Relació de despeses'!C3:D3<>\"\",'Relació de despeses'!C3:D3,\"\")","v":""},null,null,"Import total del projecte:",null,{"$f":"'Relació d''ingressos '!H3","v":""},"euros"]
["Codi de subvenció:",null,{"$f":"IF('Relació de despeses'!C4:D4<>\"\",'Relació de despeses'!C4:D4,\"\")","v":""},null,null,"Import de la subvenció atorgada:",null,{"$f":"'Relació d''ingressos '!H4","v":""},"euros"]
["Nom del projecte subvencionat:",null,{"$f":"IF('Relació de despeses'!C5:D5<>\"\",'Relació de despeses'!C5:D5,\"\")","v":""},null,null,"Període d'execució del projecte subvencionat:",null,null,{"$f":"'Relació d''ingressos '!H5","v":""},"a",{"$f":"'Relació d''ingressos '!J5","v":""}]
[]
["SUBVENCIONS PER A LA PROMOCIÓ I REFORÇ DE L'ECONOMIA SOCIAL I SOLIDÀRIA 2019"]
["DESPESES PREVISTES",null,null,null,"import en euros",null,"INGRESSOS PREVISTOS"]
["Despeses directes \n(aquelles que s'identifiquen directament amb el projecte)",null,"Previsió inicial o reformulada ja aprovada (1)","Despeses realitzades (2)","Diferència\n",null,"Ingressos previstos",null,"Previsió inicial (1)","Ingressos obtinguts (3)"]
[null,null,null,null,"(2-1)"]
["Cb","D.1  Nòmines i seguretat social IRPF (règim general o règim d’autònoms) del personal propi  vinculat al projecte ",null,{"$f":"'Relació de despeses'!J16","v":0},{"$f":"+C13-D13","v":0},{"$f":"+IF(D13<0,\"No s'admeten valors negatius\",\"\")","v":""},"A.","Subvenció municipal (import sol·licitat a la instància/atorgat)",null,{"$f":"'Relació d''ingressos '!F15","v":0},{"$f":"+IF(J13<0,\"No s'admeten valors negatius\",IF(J13<>'Relació d''ingressos '!F15,\"No coincideix amb import pestanya anterior\",\"\"))","v":""}]
[null,"D.2 Rendiments anuals nets de l’empresari/a individual (veure 13.2 bases)",null,{"$f":"'Relació de despeses'!J22","v":0},{"$f":"+C14-D14","v":0},{"$f":"+IF(D14<0,\"No s'admeten valors negatius\",\"\")","v":""},"B.","Subvencions d'altres administracions",null,{"$f":"'Relació d''ingressos '!F21","v":0},{"$f":"+IF(J14<0,\"No s'admeten valors negatius\",\"\")","v":""}]
[null,"D.3  Treballs realitzats per professionals i empreses externes directament vinculades al projecte",null,{"$f":"'Relació de despeses'!J28","v":0},0,"","C.","Subvencions d'ens privats",null,{"$f":"'Relació d''ingressos '!F27","v":0},""]
[null,"D.4 Lloguer de bens mobles/immobles directament vinculats al projecte",null,{"$f":"'Relació de despeses'!J34","v":0},0,"","D.","Recursos propis de l'entitat aplicats al projecte",null,{"$f":"'Relació d''ingressos '!F33","v":0},""]
[null,"D.5 Adquisició de materials i béns consumibles íntegrament imputables al projecte",null,{"$f":"'Relació de despeses'!J40","v":0},0,"","E.","Taquillatge",null,{"$f":"'Relació d''ingressos '!F39","v":0},""]
[null,"D.6 Transport – missatgeria imputables al projecte",null,{"$f":"'Relació de despeses'!J46","v":0},0,"","F.","Quotes d'inscripció",null,{"$f":"'Relació d''ingressos '!F45","v":0},""]
[null,"D.7 Publicitat i propaganda de les activitats directament vinculades al projecte",null,{"$f":"'Relació de despeses'!J52","v":0},0,"","G.","Venda de Productes",null,{"$f":"'Relació d''ingressos '!F51","v":0},""]
[null,"D.8  Allotjament i dietes, del personal contractat i voluntaris",null,{"$f":"'Relació de despeses'!J58","v":0},0,"","H","Publicitat i/o Esponsorització",null,{"$f":"'Relació d''ingressos '!F57","v":0},""]
[null,"D.9  Ajuts al transport per als/les participants dels projectes en cas que sigui necessari de manera justificada",null,{"$f":"'Relació de despeses'!J64","v":0},0,{"$f":"+IF(D21<0,\"No s'admeten valors negatius\",\"\")","v":""},"I.","Altres ingressos",null,{"$f":"'Relació d''ingressos '!F66","v":0},""]
[null,"D.10  Viatges i desplaçaments imputables a les activitats del projecte",null,{"$f":"'Relació de despeses'!J70","v":0},0,{"$f":"+IF(D22<0,\"No s'admeten valors negatius\",\"\")","v":""},null,"Total Ingressos",{"$f":"SUM(I13:I21)","v":0},{"$f":"SUM(J13:J21)","v":0}]
[null,"D.11 Tributs, quan siguin abonats directament per la persona jurídica o física beneficiària",null,{"$f":"'Relació de despeses'!J76","v":0},0,""]
[null,"D.12  Despeses de l’informe d’auditoria, quan sigui obligatòria la seva presentació per import de la subvenció",null,{"$f":"'Relació de despeses'!J82","v":0},0,""]
[null,"D.13  Altres despeses que de manera justificada i per la tipologia del projecte puguin imputar-se directament al projecte",null,{"$f":"'Relació de despeses'!J88","v":0},0,""]
[null,"Total Despeses Directes   ",{"$f":"SUM(C13:C25)","v":0},{"$f":"SUM(D13:D25)","v":0},{"$f":"SUM(E13:E25)","v":0}]
["Despeses indirectes \n(no es poden assignar directament al projecte sense fer servir algun % d'assignació)",null,"Previsió inicial o reformulada ja aprovada (1)","Despeses realitzades (2)","Diferència\n"]
[null,null,null,null,"(2-1)"]
["Cb","I.1 Personal de suport al projecte (Nòmines i seguretat social)",null,{"$f":"'Relació de despeses'!J96","v":0},{"$f":"+C29-D29","v":0},{"$f":"+IF(D29<0,\"No s'admeten valors negatius\",\"\")","v":""},"Ingressos menys despeses ",null,{"$f":"+I22-C40","v":0},{"$f":"+J22-D40","v":0}]
[null,"I.2  Assegurances",null,{"$f":"'Relació de despeses'!J102","v":0},0,{"$f":"+IF(D30<0,\"No s'admeten valors negatius\",\"\")","v":""},"Desviació de Despeses (4)",null,"Desviació d'ingressos (4)"]
[null,"I.3  Amortització",null,{"$f":"'Relació de despeses'!J108","v":0},0,"","Import"," % ","Import","%"]
[null,"I.4  Lloguer de béns immobles",null,{"$f":"'Relació de despeses'!J114","v":0},0,"",{"$f":"D40","v":0},{"$f":"G32/C40","v":{"$error":"#DIV/0!"}},{"$f":"J22","v":0},{"$f":"I32/I22","v":{"$error":"#DIV/0!"}}]
[null,"I.5  Adquisició de materials i béns consumibles parcialment imputables al projecte",null,{"$f":"'Relació de despeses'!J120","v":0},0,"",null,null,"% subvencionat inicialment o després de reformulació (5)",{"$f":"I13/I22","v":{"$error":"#DIV/0!"}}]
[null,"I.6  Manteniment d’edificis i/o instal·lacions",null,{"$f":"'Relació de despeses'!J126","v":0},0,"",null,null,"% subvencionat després de justificació (6)",{"$f":"+J13/J22","v":{"$error":"#DIV/0!"}}]
[null,"I.7  Comunicacions (telèfon, correus, connexió a internet)",null,{"$f":"'Relació de despeses'!J132","v":0},0,""]
[null,"I.8  Despeses financeres",null,{"$f":"'Relació de despeses'!J138","v":0},0,""]
[null,"I.9  Subministraments ",null,{"$f":"'Relació de despeses'!J144","v":0},0,""]
[null,"I.10  Treball realitzat per altres empreses, parcialment imputables al projecte (neteja, seguretat...)",null,{"$f":"'Relació de despeses'!J150","v":0},0,""]
[null,"Total Despeses Indirectes   ",{"$f":"SUM(C29:C38)","v":0},{"$f":"SUM(D29:D38)","v":0},{"$f":"SUM(E29:E38)","v":0}]
[null,"Total Despeses ",{"$f":"+C26+C39","v":0},{"$f":"+D26+D39","v":0},{"$f":"+E39+E26","v":0}]
[null,null,null,null,"import en euros"]
[{"$f":"'Relació de despeses'!A155:K155","v":"El Sr./Sra. (indicar el nom i cognoms de la persona representant que signa la justificació)  amb DNI/NIE (indicar el núm. DNI) en qualitat de persona física beneficiària o representant legal de la persona jurídica beneficiària (indicar nom i cognoms) amb NIF (indicar núm DNI)."},null,null,null,null,null,{"$f":"J13*0.2","v":0}]
["CERTIFICA que els ingressos imputats al projecte/activitat/servei subvencionat han estat efectivament ingressats; que custodiarà la documentació suport que ho acredita; que  aquesta documentació es troba a disposició de l'Ajuntament de Barcelona o dels altres ens municipals en els arxius d'aquesta Entitat, durant un període mínim de 4 anys a comptar des de la data de presentació de la present justificació."]
[]
[null,"Població i data: ",null,null,"Signatura i segell"]
[]
["Notes:"]
["(*) Les columnes ombrejades en color  s'aniran emplenant automàticament a partir de les dades introduïdes en els documents de despeses -detall i ingressos-detall. Per tant, no imprimiu aquest full fins haver emplenat els altres."]
["(1) Previsió inicial o reformulació ja aprovada= S'han d'indicar la previsió inicial de despeses i d'ingressos segons allò que es va indicar al projecte original en el \"pla de viabilitat econòmica del projecte - pressupost general\" . En cas que ja s'hagi aprovat una reformulació, s'han d'indicar les quantitats reformulades. "]
["(2) Despeses reals = Cost real total del projecte subvencionat. Automàticament s'introduiran els subtotals de les despeses relacionades al full Despeses-detall."]
["(3) Ingresos reals = Total d'ingressos obtinguts per a la realització del projecte subvencionat. Automàticament s'introduiran els subtotals dels ingressos relacionats al full Ingressos-detall"]
["(4) Desviació: En el cas de les despeses, la desviació és la diferència entre despeses reals i la previsió inicial de despeses; i en el cas d'ingressos, la diferència entre els ingressos reals i la previsió inicial d'ingressos. "]
["(5) % finançament municipal = percentatge que suposen les subvencions municipals (A) respecte del  total d'ingressos del projecte subvencionat."]
["(6) El % de la desviació final de despeses es calcula dividint l'import resultant de despeses reals - despeses previstes, entre el total de despeses previstes i de la mateixa manera els ingressos, En cas d'existir una desviació sempre s'ha de motivar."]
["1.  La quantia de la subvenció atorgada no superarà el 80% de la despesa total del projecte a subvencionar. "]
["2.  Es limita amb un màxim del 50% l’import de la subvenció per a despeses de personal propi assignat al projecte."]
["3. Els salaris percebuts per les persones contractades en el marc del projecte subvencionat no siguin inferiors a 1.088,56€ bruts mensuals (13.062,72€ bruts en còmput anual) en el cas de jornades completes, o la part proporcional en el cas de jornades parcials (punt 7 de les bases 2019: Requisits dels projectes)"]
[]
["4.  Les despeses indirectes imputades al projecte detallades, no podran superar el 10% de l’import de la subvenció."]
["5.  Només amb caràcter excepcional, els/les empresaris/ies individuals que no tinguin persones treballadores en plantilla"]
["    podran acreditar els seus treballs mitjançant una declaració responsable acompanyada de les declaracions IRPF (model 130) de l’exercici corrent."]
["    El preu/hora imputat al projecte subvencionat no podrà superar la quantitat resultant de dividir els rendiments anuals nets de l’empresari/a individual per 1800."]
["6.  El caràcter subvencionable de la despesa d'amortització estarà subjecte a les condicions següents:"]
["- Que les subvencions no hagin contribuït a la compra dels béns."]
["- Que l'amortització es calculi de conformitat amb les normes de comptabilitat generalment acceptades."]
["- Que el cost es refereixi al període subvencionable."]
["7.  En cap cas es consideraran despeses subvencionables:"]
["- Els impostos indirectes quan siguin susceptibles de recuperació o compensació, ni els impostos sobre la renda."]
["- Les despeses d'inversió, incloses les adquisicions de béns mobles."]
["- Les despeses realitzades amb data anterior a l'inici del projecte i data posterior a la finalització del projecte."]
["- Altres despeses que s'indiquin a la convocatòria."]
["8.  Entre la resolució provisional i definitiva s’acrediti la constitució de la cooperativa o societat laboral,"]
["      i s’acrediti amb la presentació dels documents d’inscripció en el registre corresponent i l’alta censal."]
["9. Quan s'hagi de fer despeses de més de 12.000 €, sense IVA, en el cas de prestacions de serveis o lliurament de béns i per aquelles despeses de més de 30.000 €, sense IVA"]
["       en el cas d'execució d'obres, hauran d'incorporar tres pressupostos sol·licitats i argumentar el motiu de l'adjudicació en el cas de no ser la proposta més avantatjosa econòmicament."]
[]
[]
[]
[]
[]
[]
[]
[]
[]
[]
[]
[]
[]
[]
[]
[]
[]
[]
[]
[]
[]
[]
[]
[]
[]
[]
[]
[]
[]
[]
[]
[]
[]
[]
[]
[]
[]
[]
[]
[]
[]
[]
[]
[]
[]
[]
[]
[]
[null,null,0]